bitfinex/quotes_BTCUSD_20250211
["timestamp","ask_amount","ask_price","bid_price","bid_amount"]
[1739236178328,0.6381047,98080.0,98079.0,0.00018328]
[1739236178522,0.2875,98070.0,98069.0,0.0001066]
[1739236178731,0.2875,98070.0,98069.0,0.00020215]
[1739236178732,0.92888604,98070.0,98069.0,0.00020215]
[1739236179846,0.95786005,98070.0,98069.0,0.00020215]
[1739236179998,1.0603637,98070.0,98069.0,0.00020215]
[1739236180178,0.95786005,98070.0,98069.0,0.00020215]
[1739236180526,1.07236005,98070.0,98069.0,0.00020215]
[1739236180663,0.93888604,98070.0,98069.0,0.00020215]
[1739236181069,0.94588604,98070.0,98069.0,0.00020215]
[1739236181813,0.93588604,98070.0,98069.0,0.00020215]
[1739236182013,0.86728604,98070.0,98069.0,0.00020215]
[1739236183355,0.86028604,98070.0,98069.0,0.00020215]
[1739236183600,0.86728604,98070.0,98069.0,0.00020215]
[1739236184151,0.85728604,98070.0,98069.0,0.00020215]
[1739236184388,0.86728604,98070.0,98069.0,0.00020215]
[1739236184772,0.85728604,98070.0,98069.0,0.00020215]
[1739236185349,0.96993861,98070.0,98069.0,0.00020215]
[1739236185518,0.87743496,98070.0,98069.0,0.00020215]
[1739236186352,0.86743496,98070.0,98069.0,0.00020215]
[1739236186555,0.81853496,98070.0,98069.0,0.00020215]
[1739236186935,0.80853496,98070.0,98069.0,0.00020215]
[1739236187344,0.77679695,98070.0,98069.0,0.00020215]
[1739236189320,0.79584586,98070.0,98069.0,0.00020215]
[1739236194392,0.77679695,98070.0,98069.0,0.00020215]
[1739236195127,0.77179695,98070.0,98069.0,0.00020215]
[1739236195593,0.78579695,98070.0,98069.0,0.00020215]
[1739236200826,0.89329695,98070.0,98069.0,0.00020215]
[1739236201094,0.80488017,98070.0,98069.0,0.00020215]
[1739236204154,0.81488017,98070.0,98069.0,0.00020215]
[1739236204378,0.84668646,98070.0,98069.0,0.00020215]
[1739236205119,0.94919011,98070.0,98069.0,0.00020215]
[1739236205360,0.92868646,98070.0,98069.0,0.00020215]
[1739236205844,0.90960324,98070.0,98069.0,0.00020215]
[1739236206082,0.91960324,98070.0,98069.0,0.00020215]
[1739236206311,0.96920324,98070.0,98069.0,0.00020215]
[1739236206619,1.07170689,98070.0,98069.0,0.00020215]
[1739236211908,0.15298,98052.0,98051.0,0.0001066]
[1739236212050,0.31156503,98052.0,98051.0,0.00020617]
[1739236212250,0.31825821,98052.0,98051.0,0.00020617]
[1739236213242,0.32325821,98052.0,98051.0,0.00020617]
[1739236213445,0.65755821,98052.0,98051.0,0.00020617]
[1739236214352,0.66793066,98052.0,98051.0,0.00020617]
[1739236214752,0.66093066,98052.0,98051.0,0.00020617]
[1739236215098,0.67493066,98052.0,98051.0,0.00020617]
[1739236215307,0.68193066,98052.0,98051.0,0.00020617]
[1739236215725,0.66793066,98052.0,98051.0,0.00020617]
[1739236216271,0.68193066,98052.0,98051.0,0.00020617]
[1739236217029,0.78443431,98052.0,98051.0,0.00020617]
[1739236217409,0.80510716,98052.0,98051.0,0.00020617]
[1739236217758,0.95510716,98052.0,98051.0,0.00020617]
[1739236217941,1.00470716,98052.0,98051.0,0.00020617]
[1739236218145,0.99770716,98052.0,98051.0,0.00020617]
[1739236218351,1.00470716,98052.0,98051.0,0.00020617]
[1739236218729,1.00070716,98052.0,98051.0,0.00020617]
[1739236218906,1.01470716,98052.0,98051.0,0.00020617]
[1739236219308,1.01470716,98052.0,98024.0,0.076]
[1739236219309,0.354021,98029.0,98016.0,0.08155672]
[1739236219510,0.153034,98017.0,98016.0,0.08155672]
[1739236219715,0.176034,98017.0,98016.0,0.08155672]
[1739236219911,0.1839409,98017.0,98016.0,0.0001065]
[1739236220501,0.18521632,98017.0,98016.0,0.0001065]
[1739236220940,0.18526062,98017.0,98016.0,0.0001065]
[1739236221586,0.18626062,98017.0,98016.0,0.0001065]
[1739236221982,0.18576134,98017.0,98016.0,0.0001065]
[1739236222215,0.18448592,98017.0,98016.0,0.0001065]
[1739236224685,0.19617061,98017.0,98016.0,0.0001065]
[1739236225008,0.19517061,98017.0,98016.0,0.0001065]
[1739236225182,0.20017061,98017.0,98016.0,0.0001065]
[1739236225420,0.20217061,98017.0,98016.0,0.0001065]
[1739236225604,0.20017061,98017.0,98016.0,0.0001065]
[1739236225851,0.19517061,98017.0,98016.0,0.0001065]
[1739236226057,0.20017061,98017.0,98016.0,0.0001065]
[1739236226446,0.20217061,98017.0,98016.0,0.0001065]
[1739236227985,0.45467426,98017.0,98016.0,0.0001065]
[1739236228217,0.45339885,98017.0,98016.0,0.0001065]
[1739236228932,0.44839885,98017.0,98016.0,0.0001065]
[1739236229110,0.45439885,98017.0,98016.0,0.0001065]
[1739236229459,0.48001513,98017.0,98016.0,0.0001065]
[1739236230708,0.45739885,98017.0,98016.0,0.0001065]
[1739236230920,0.46539885,98017.0,98016.0,0.0001065]
[1739236231065,0.48001513,98017.0,98016.0,0.0001065]
[1739236231272,0.80231513,98017.0,98016.0,0.0001065]
[1739236231472,0.81031513,98017.0,98016.0,0.0001065]
[1739236231816,0.78769885,98017.0,98016.0,0.0001065]
[1739236232094,0.79081602,98017.0,98016.0,0.0001065]
[1739236232333,0.78281602,98017.0,98016.0,0.0001065]
[1739236233289,0.68031237,98017.0,98016.0,0.0001065]
[1739236233492,0.68031237,98017.0,98016.0,0.0821065]
[1739236237733,0.68053645,98017.0,98016.0,0.0821065]
[1739236240799,0.68053645,98017.0,98016.0,0.0001065]
[1739236243492,0.88554375,98017.0,98016.0,0.0001065]
[1739236243694,0.7830401,98017.0,98016.0,0.0001065]
[1739236244360,0.81482224,98017.0,98016.0,0.0001065]
[1739236244695,0.80382224,98017.0,98016.0,0.0001065]
[1739236245021,0.82382224,98017.0,98016.0,0.0001065]
[1739236246378,0.83182224,98017.0,98016.0,5e-07]
[1739236246978,0.92122224,98017.0,98016.0,5e-07]
[1739236247560,0.91522224,98017.0,98016.0,5e-07]
[1739236247737,0.92222224,98017.0,98016.0,5e-07]
[1739236248156,0.90122224,98017.0,98016.0,5e-07]
[1739236248341,0.92322224,98017.0,98016.0,5e-07]
[1739236248889,0.92211922,98017.0,98016.0,5e-07]
[1739236249035,0.326054,98004.0,98003.0,0.0001065]
[1739236249388,0.42855765,98004.0,98003.0,0.0001065]
[1739236249612,0.43958957,98004.0,98003.0,0.0001065]
[1739236251176,0.45358957,98004.0,98003.0,0.0001065]
[1739236251383,0.45858957,98004.0,98003.0,0.0001065]
[1739236253425,0.49042433,98004.0,98003.0,0.0001065]
[1739236254724,0.47142433,98004.0,98003.0,0.0001065]
[1739236254924,0.48675252,98004.0,98003.0,0.0001065]
[1739236255375,0.50075252,98004.0,98003.0,0.0001065]
[1739236258257,0.82305252,98004.0,98003.0,0.0001065]
[1739236260101,0.83305252,98004.0,98003.0,0.0001065]
[1739236260821,0.84105252,98004.0,98003.0,0.0001065]
[1739236263814,0.83105252,98004.0,98003.0,5e-07]
[1739236264107,0.94355617,98004.0,98003.0,5e-07]
[1739236264395,0.92555617,98004.0,98003.0,5e-07]
[1739236264778,0.82305252,98004.0,98003.0,5e-07]
[1739236265761,0.83105252,98004.0,98003.0,5e-07]
[1739236269019,0.91345252,98004.0,98003.0,5e-07]
[1739236269926,0.91345252,98004.0,97991.0,0.0002]
[1739236269927,0.326073,97992.0,97991.0,6e-07]
[1739236270173,0.46841141,97992.0,97991.0,6e-07]
[1739236270412,0.58188439,97992.0,97991.0,6e-07]
[1739236270663,0.47938074,97992.0,97991.0,6e-07]
[1739236271319,0.48938074,97992.0,97991.0,6e-07]
[1739236271524,0.50338074,97992.0,97991.0,6e-07]
[1739236271699,0.51038074,97992.0,97991.0,6e-07]
[1739236271859,0.53074128,97992.0,97991.0,6e-07]
[1739236272062,0.59233946,97992.0,97991.0,6e-07]
[1739236273184,0.59233946,97992.0,97991.0,0.0001072]
[1739236273796,0.58533946,97992.0,97991.0,0.0001072]
[1739236274113,0.57833946,97992.0,97991.0,0.0001072]
[1739236274311,0.59333946,97992.0,97991.0,0.0001072]
[1739236274660,0.60360856,97992.0,97991.0,0.0001072]
[1739236275844,0.9257542,97992.0,97991.0,0.0001072]
[1739236276195,0.86415602,97992.0,97991.0,0.0001072]
[1739236277205,0.85615602,97992.0,97991.0,0.0001072]
[1739236277427,0.83579548,97992.0,97991.0,0.0001072]
[1739236277681,0.80279548,97992.0,97991.0,0.0001072]
[1739236277909,0.75596072,97992.0,97991.0,0.0001072]
[1739236278337,0.78696072,97992.0,97991.0,0.0001072]
[1739236278785,0.77896072,97992.0,97991.0,0.0001072]
[1739236278989,0.66745707,97992.0,97991.0,0.0001072]
[1739236279510,0.51761143,97992.0,97991.0,0.0001072]
[1739236280371,0.66961143,97992.0,97991.0,0.0001072]
[1739236280701,0.68861143,97992.0,97991.0,0.0001072]
[1739236281120,0.68361143,97992.0,97991.0,0.0001072]
[1739236281297,0.67461143,97992.0,97991.0,0.0001072]
[1739236281497,0.68361143,97992.0,97991.0,0.0001072]
[1739236281876,0.36631143,97992.0,97991.0,0.0001072]
[1739236282084,0.35231143,97992.0,97991.0,0.0001072]
[1739236282304,0.36631143,97992.0,97991.0,0.0001072]
[1739236285270,0.36653551,97992.0,97991.0,0.0001072]
[1739236298343,0.35626641,97992.0,97991.0,0.1229072]
[1739236298770,0.20626641,97992.0,97991.0,0.1229072]
[1739236299307,0.02519341,97992.0,97991.0,0.1316272]
[1739236299509,0.03019341,97992.0,97991.0,0.1316272]
[1739236299915,0.01619341,97992.0,97991.0,0.1316272]
[1739236300220,0.03019341,97992.0,97991.0,0.1316272]
[1739236300567,0.01119341,97992.0,97991.0,0.1316272]
[1739236301056,0.01219341,97992.0,97991.0,0.1316272]
[1739236302192,0.01219341,97992.0,97991.0,0.1209072]
[1739236302193,0.03519341,97992.0,97991.0,0.1209072]
[1739236302396,0.03519341,97992.0,97991.0,0.1229072]
[1739236302596,0.18826641,97992.0,97991.0,0.1229072]
[1739236303251,0.18826641,97992.0,97991.0,0.0021072]
[1739236303444,0.18826641,97992.0,97991.0,0.0001072]
[1739236303623,0.18826641,97992.0,97991.0,0.0021072]
[1739236305857,0.18826641,97992.0,97991.0,0.0001072]
[1739236306092,0.18826641,97992.0,97991.0,0.0021072]
[1739236307110,0.18826641,97992.0,97991.0,0.0001072]
[1739236307322,0.18826641,97992.0,97991.0,0.0021072]
[1739236307538,0.18826641,97992.0,97991.0,0.0001072]
[1739236307794,0.18954207,97992.0,97991.0,0.0001072]
[1739236308037,0.19955719,97992.0,97991.0,0.0001072]
[1739236312242,0.19955733,97992.0,97991.0,0.0001072]
[1739236312815,0.4839408,97992.0,97991.0,0.0001072]
[1739236313026,0.48266498,97992.0,97991.0,0.0001072]
[1739236313615,0.48166498,97992.0,97991.0,0.0001072]
[1739236314015,0.48466498,97992.0,97991.0,0.0001072]
[1739236314419,0.49266498,97992.0,97991.0,0.0001072]
[1739236317526,0.81496498,97992.0,97991.0,0.0001072]
[1739236319393,0.38638833,97992.0,97991.0,0.0001072]
[1739236319608,0.34449341,97992.0,97991.0,0.0021072]
[1739236320019,0.36749341,97992.0,97991.0,0.0001072]
[1739236320260,0.04519341,97992.0,97991.0,0.0001072]
[1739236320473,0.04346917,97992.0,97991.0,0.0001072]
[1739236320676,0.329561,97992.0,97991.0,0.0001072]
[1739236320882,0.39003322,97992.0,97991.0,0.0001072]
[1739236321081,0.38203322,97992.0,97991.0,0.0001072]
[1739236321234,0.46213322,97992.0,97991.0,0.0001072]
[1739236321447,0.45913322,97992.0,97991.0,0.0001072]
[1739236321871,0.46213322,97992.0,97991.0,0.0001072]
[1739236323061,0.47113322,97992.0,97991.0,0.0001072]
[1739236323483,0.46213322,97992.0,97991.0,0.0001072]
[1739236323705,0.45913322,97992.0,97991.0,0.0001072]
[1739236323909,0.48313322,97992.0,97991.0,0.0001072]
[1739236324331,0.47413322,97992.0,97991.0,0.0001072]
[1739236324535,0.46913322,97992.0,97991.0,0.0001072]
[1739236324736,0.48313322,97992.0,97991.0,0.0001072]
[1739236325395,0.49613322,97992.0,97991.0,0.0001072]
[1739236325926,0.81843322,97992.0,97991.0,0.0001072]
[1739236326137,0.80443322,97992.0,97991.0,0.0001072]
[1739236326584,0.81843322,97992.0,97991.0,0.0001072]
[1739236326787,0.81343322,97992.0,97991.0,0.0001072]
[1739236327014,0.82043322,97992.0,97991.0,0.0001072]
[1739236327537,0.80643322,97992.0,97991.0,0.0001072]
[1739236327850,0.760961,97992.0,97991.0,0.0001072]
[1739236330228,0.745961,97992.0,97991.0,0.0001072]
[1739236330437,0.738961,97992.0,97991.0,0.0001072]
[1739236330652,0.760961,97992.0,97991.0,0.0001072]
[1739236332281,0.745961,97992.0,97991.0,0.0001072]
[1739236332483,0.86346465,97992.0,97991.0,0.0001072]
[1739236333013,0.84846465,97992.0,97991.0,0.0001072]
[1739236333378,0.85646465,97992.0,97991.0,0.0001072]
[1739236333583,0.86346465,97992.0,97991.0,0.0001072]
[1739236333942,0.85646465,97992.0,97991.0,0.0001072]
[1739236334302,0.86346465,97992.0,97991.0,0.0001072]
[1739236334500,0.85646465,97992.0,97991.0,0.0001072]
[1739236334699,0.86346465,97992.0,97991.0,0.0001072]
[1739236335130,1.01653765,97992.0,97991.0,0.0001072]
[1739236335383,1.00153765,97992.0,97991.0,0.0001072]
[1739236335734,1.01653765,97992.0,97991.0,0.0001072]
[1739236335945,0.30309,97981.0,97980.0,0.0001066]
[1739236336126,0.84095759,97981.0,97980.0,0.0001066]
[1739236336329,0.92669908,97981.0,97980.0,0.0001066]
[1739236336966,0.94069908,97981.0,97980.0,0.0001066]
[1739236337189,0.94069908,97981.0,97980.0,0.00055009]
[1739236337385,0.94769908,97981.0,97980.0,0.00055009]
[1739236337612,1.05020273,97981.0,97980.0,0.00055009]
[1739236338901,1.03620273,97981.0,97980.0,0.00055009]
[1739236339469,1.05020273,97981.0,97980.0,0.00055009]
[1739236339726,0.313097,97977.0,97956.0,0.0826]
[1739236339988,0.47046459,97977.0,97976.0,0.00020624]
[1739236340237,0.51571982,97977.0,97976.0,0.00020624]
[1739236341012,0.49430255,97977.0,97976.0,0.00020624]
[1739236341204,0.81660255,97977.0,97976.0,0.00020624]
[1739236341410,0.82360255,97977.0,97976.0,0.00020624]
[1739236341835,0.82360255,97977.0,97976.0,2.4e-07]
[1739236342026,0.84396263,97977.0,97976.0,2.4e-07]
[1739236342210,0.95446628,97977.0,97976.0,2.4e-07]
[1739236343219,0.344098,97976.0,97975.0,8.4e-07]
[1739236343422,0.47846559,97976.0,97975.0,0.0001093]
[1739236343624,0.48826507,97976.0,97975.0,0.0001093]
[1739236343850,0.59076872,97976.0,97975.0,0.0001093]
[1739236344392,0.60476872,97976.0,97975.0,0.0001093]
[1739236344859,0.50226507,97976.0,97975.0,0.0001093]
[1739236345268,0.50926507,97976.0,97975.0,0.0001093]
[1739236347193,0.83156507,97976.0,97975.0,0.0001093]
[1739236351589,0.82456507,97976.0,97975.0,0.0001093]
[1739236351804,0.83156507,97976.0,97975.0,0.0001093]
[1739236351952,0.81756507,97976.0,97975.0,0.0001093]
[1739236352152,0.83156507,97976.0,97975.0,0.0001093]
[1739236352362,0.82356507,97976.0,97975.0,0.0001093]
[1739236354977,0.82378915,97976.0,97975.0,0.0001093]
[1739236355728,0.9262928,97976.0,97975.0,0.0001093]
[1739236356574,0.82378915,97976.0,97975.0,0.0001093]
[1739236363656,0.81378915,97976.0,97975.0,0.0001093]
[1739236363857,0.82378915,97976.0,97975.0,0.0001093]
[1739236364246,0.91537701,97976.0,97975.0,0.0001093]
[1739236364641,0.92337701,97976.0,97975.0,3e-07]
[1739236364850,0.92337701,97976.0,97952.0,0.0001067]
[1739236364851,0.344109,97969.0,97968.0,2e-07]
[1739236365116,0.47847659,97969.0,97968.0,8.2e-07]
[1739236365401,0.59075836,97969.0,97968.0,8.2e-07]
[1739236366057,0.60575836,97969.0,97968.0,8.2e-07]
[1739236366631,0.59075836,97969.0,97968.0,8.2e-07]
[1739236366839,0.61275836,97969.0,97968.0,8.2e-07]
[1739236367254,0.176134,97953.0,97952.0,0.0001067]
[1739236367491,0.78407741,97953.0,97952.0,0.0005492]
[1739236367624,0.79258681,97953.0,97952.0,0.0005492]
[1739236368608,0.79958681,97953.0,97952.0,0.0005492]
[1739236369140,0.91609046,97953.0,97952.0,0.0005492]
[1739236369348,0.81358681,97953.0,97952.0,0.0005492]
[1739236370005,0.8237969,97953.0,97952.0,0.0005492]
[1739236371583,0.344136,97952.0,97951.0,2e-07]
[1739236371832,0.4887273,97952.0,97951.0,2e-07]
[1739236371993,0.59123095,97952.0,97951.0,2e-07]
[1739236373027,0.60623095,97952.0,97951.0,2e-07]
[1739236373816,0.51640818,97952.0,97951.0,2e-07]
[1739236374409,0.52340818,97952.0,97951.0,2e-07]
[1739236376941,0.84570818,97952.0,97951.0,2e-07]
[1739236378023,0.83570818,97952.0,97951.0,2e-07]
[1739236378190,0.84570818,97952.0,97951.0,2e-07]
[1739236378421,0.94821183,97952.0,97951.0,2e-07]
[1739236378553,0.93821183,97952.0,97951.0,2e-07]
[1739236379724,0.94821183,97952.0,97951.0,2e-07]
[1739236379868,0.93821183,97952.0,97951.0,0.0001069]
[1739236380295,0.94821183,97952.0,97951.0,0.0001069]
[1739236380510,0.8250273,97952.0,97951.0,0.0001069]
[1739236381379,0.8150273,97952.0,97951.0,0.0001069]
[1739236381579,0.8250273,97952.0,97951.0,0.0001069]
[1739236392044,0.8250273,97952.0,97951.0,9e-07]
[1739236392803,0.8100273,97952.0,97951.0,9e-07]
[1739236392999,0.91275503,97952.0,97951.0,9e-07]
[1739236393145,0.92775503,97952.0,97951.0,9e-07]
[1739236393694,0.92075503,97952.0,97951.0,9e-07]
[1739236394103,0.92775503,97952.0,97951.0,9e-07]
[1739236394262,0.90575503,97952.0,97951.0,9e-07]
[1739236394670,0.92775503,97952.0,97951.0,9e-07]
[1739236395250,0.176161,97936.0,97935.0,0.0758]
[1739236395458,0.153172,97929.0,97928.0,0.1258]
[1739236395706,0.46053959,97929.0,97928.0,0.1258]
[1739236395910,0.47025363,97929.0,97928.0,0.1258]
[1739236396508,0.47025363,97929.0,97928.0,0.0774]
[1739236396509,0.57275728,97929.0,97928.0,0.0774]
[1739236396687,0.303184,97921.0,97920.0,0.0774]
[1739236397033,0.47023136,97921.0,97920.0,0.0774]
[1739236397240,0.4383857,97921.0,97920.0,0.0774]
[1739236397393,0.47023333,97921.0,97920.0,0.0774]
[1739236397797,0.47323333,97921.0,97920.0,0.0774]
[1739236399655,0.48268201,97921.0,97920.0,0.0774]
[1739236403521,0.47368201,97921.0,97920.0,0.0774]
[1739236403882,0.47868201,97921.0,97920.0,0.0774]
[1739236403999,0.48168201,97921.0,97920.0,0.0774]
[1739236405025,0.48168201,97921.0,97920.0,0.0775066]
[1739236405614,0.37917836,97921.0,97920.0,0.0795066]
[1739236405813,0.34732522,97921.0,97920.0,0.1246066]
[1739236411000,0.19732522,97921.0,97920.0,0.1246066]
[1739236413440,0.02114122,97921.0,97920.0,0.1246066]
[1739236413647,0.02114122,97921.0,97920.0,0.2788137]
[1739236413849,0.01144317,97921.0,97920.0,0.38029625]
[1739236414264,0.00044317,97921.0,97920.0,0.38029625]
[1739236414479,0.09161978,97946.0,97945.0,0.282947]
[1739236414696,0.09161978,97946.0,97945.0,0.39413065]
[1739236415496,0.01351978,97946.0,97945.0,0.39413065]
[1739236417011,0.01351978,97946.0,97945.0,0.40448954]
[1739236417459,0.01451978,97946.0,97945.0,0.42535596]
[1739236418023,0.01551978,97946.0,97945.0,0.42535596]
[1739236418257,0.002,97946.0,97945.0,0.42535596]
[1739236418782,0.001,97946.0,97945.0,0.42535596]
[1739236419031,0.003,97946.0,97945.0,0.42535596]
[1739236419553,0.003,97946.0,97945.0,0.57535596]
[1739236430226,0.003,97946.0,97945.0,0.90695596]
[1739236430421,0.00022387,97951.0,97950.0,0.442939]
[1739236430622,0.00022387,97951.0,97950.0,0.97918915]
[1739236430824,0.00022387,97951.0,97950.0,2.47918915]
[1739236431613,0.00022387,97951.0,97950.0,2.4793216]
[1739236432009,0.00122387,97951.0,97950.0,2.4793216]
[1739236432212,0.00222387,97951.0,97950.0,2.4793216]
[1739236433720,0.00022408,97969.0,97951.0,0.01]
[1739236433964,60.0,98441.0,97950.0,2.4693216]
[1739236433965,0.3223,98014.0,97991.0,0.237275]
[1739236434181,0.0798,98018.0,97991.0,0.34845865]
[1739236434182,0.09155695,97992.0,97991.0,0.34845865]
[1739236434393,0.00022408,97992.0,97991.0,0.34845865]
[1739236435014,0.00122408,97992.0,97991.0,0.34845865]
[1739236435221,0.00122408,97992.0,97991.0,0.3485911]
[1739236436809,0.00122408,97992.0,97991.0,0.3515911]
[1739236436938,0.00022408,97992.0,97991.0,0.1985161]
[1739236437166,0.00022408,97992.0,97991.0,0.3535911]
[1739236446634,0.00022408,97992.0,97991.0,0.2713911]
[1739236452032,0.00022408,97992.0,97991.0,0.2627111]
[1739236452238,0.00022408,97992.0,97991.0,0.2713511]
[1739236452442,0.00022408,97992.0,97991.0,0.01577245]
[1739236453894,0.15329708,97992.0,97991.0,0.00713245]
[1739236454142,0.15329708,97992.0,97991.0,0.00513245]
[1739236454143,0.00022408,97992.0,97991.0,0.00513245]
[1739236454325,0.01016532,97992.0,97991.0,0.00513245]
[1739236454522,0.00022408,97992.0,97991.0,0.00513245]
[1739236454752,0.01016626,97992.0,97991.0,0.00713245]
[1739236455125,0.01016626,97992.0,97991.0,0.00513245]
[1739236455320,0.01016626,97992.0,97991.0,0.00713245]
[1739236455850,0.01016626,97992.0,97991.0,0.00413245]
[1739236456048,0.00022408,97992.0,97991.0,0.00413245]
[1739236456232,0.01016297,97992.0,97991.0,0.00413245]
[1739236456776,0.01016297,97992.0,97991.0,0.00613245]
[1739236457184,0.00022408,97992.0,97991.0,0.00613245]
[1739236457560,0.01016297,97992.0,97991.0,0.00613245]
[1739236457762,0.00022408,97992.0,97991.0,0.00613245]
[1739236458913,0.01016236,97992.0,97991.0,0.00613245]
[1739236459113,0.00022408,97992.0,97991.0,0.00613245]
[1739236459322,0.01016236,97992.0,97991.0,0.00613245]
[1739236459547,0.00022408,97992.0,97991.0,0.00613245]
[1739236459754,0.01016518,97992.0,97991.0,0.00613245]
[1739236459881,0.00022408,97992.0,97991.0,0.00613245]
[1739236460085,0.01016518,97992.0,97991.0,0.00613245]
[1739236460291,0.00022408,97992.0,97991.0,0.00613245]
[1739236460537,0.01016518,97992.0,97991.0,0.00613245]
[1739236460761,0.00022408,97992.0,97991.0,0.00613245]
[1739236461278,0.01016048,97992.0,97991.0,0.00613245]
[1739236461450,0.00022408,97992.0,97991.0,0.00613245]
[1739236461650,0.01016048,97992.0,97991.0,0.00613245]
[1739236463616,0.00022408,97992.0,97991.0,0.2617111]
[1739236492239,0.00022408,97992.0,97991.0,0.1172761]
[1739236496131,0.00022408,97992.0,97991.0,0.2703511]
[1739236499007,0.00022408,97992.0,97991.0,0.1172761]
[1739236499216,0.00022408,97992.0,97991.0,0.1086361]
[1739236499447,0.00022408,97992.0,97991.0,0.01477245]
[1739236500118,0.01017761,97992.0,97991.0,0.01477245]
[1739236500352,0.00022408,97992.0,97991.0,0.01477245]
[1739236500564,0.01017761,97992.0,97991.0,0.01477245]
[1739236500799,0.00022408,97992.0,97991.0,0.01477245]
[1739236501049,0.01017761,97992.0,97991.0,0.01477245]
[1739236501292,0.00022408,97992.0,97991.0,0.00413245]
[1739236501515,0.0101824,97992.0,97991.0,0.01477245]
[1739236501776,0.07722408,97992.0,97991.0,0.01477245]
[1739236501987,0.08718085,97992.0,97991.0,0.01477245]
[1739236502191,0.01018085,97992.0,97991.0,0.01477245]
[1739236508891,0.01018085,97992.0,97991.0,0.16784745]
[1739236509019,0.00022408,97992.0,97991.0,0.1688678]
[1739236509217,0.00022408,97992.0,97991.0,0.2703511]
[1739236515138,0.00022408,97992.0,97991.0,0.2904152]
[1739236518540,0.00022408,97992.0,97991.0,0.3677152]
[1739236532254,0.00022408,97992.0,97991.0,0.2904152]
[1739236532824,0.00022408,97992.0,97991.0,0.1086361]
[1739236533030,0.00022408,97992.0,97991.0,0.1172361]
[1739236533226,0.00022408,97992.0,97991.0,0.1086361]
[1739236533429,0.07712408,97992.0,97991.0,0.01473245]
[1739236533660,0.23019708,97992.0,97991.0,0.00613245]
[1739236533861,0.24020402,97992.0,97991.0,0.01473245]
[1739236534411,0.29010402,97992.0,97991.0,0.00613245]
[1739236535187,0.29010402,97992.0,97991.0,0.00413245]
[1739236535547,0.29010402,97992.0,97991.0,0.00513245]
[1739236536232,0.29010402,97992.0,97991.0,0.00313245]
[1739236536387,0.29110402,97992.0,97991.0,0.00313245]
[1739236536929,0.29010402,97992.0,97991.0,0.00213245]
[1739236537292,0.29110402,97992.0,97991.0,0.00213245]
[1739236537699,0.01023102,97992.0,97991.0,0.00213245]
[1739236537908,0.01123102,97992.0,97991.0,0.00213245]
[1739236538220,0.01123102,97992.0,97991.0,0.00313245]
[1739236538429,0.01123102,97992.0,97991.0,0.00213245]
[1739236538640,0.00122408,97992.0,97991.0,0.00213245]
[1739236539193,0.00022408,97992.0,97991.0,0.00213245]
[1739236540109,0.00022408,97992.0,97991.0,0.00313245]
[1739236540227,0.00022408,97992.0,97991.0,0.00513245]
[1739236540448,0.00022408,97992.0,97991.0,0.00413245]
[1739236540847,0.00022408,97992.0,97991.0,0.00713245]
[1739236542023,0.00022408,97992.0,97991.0,0.26373145]
[1739236542225,0.00022408,97992.0,97991.0,0.2627111]
[1739236542439,0.00022408,97992.0,97991.0,0.3378111]
[1739236555401,0.00022408,97992.0,97991.0,0.2627111]
[1739236562230,0.00022408,97992.0,97991.0,0.1182361]
[1739236562687,0.00022408,97992.0,97991.0,0.2627111]
[1739236562971,0.00022408,97992.0,97991.0,0.2713111]
[1739236564106,0.00022408,97992.0,97991.0,1.7713111]
[1739236564782,0.00022408,97992.0,97991.0,0.2713111]
[1739236573330,0.00022408,97992.0,97991.0,0.1096361]
[1739236573542,0.00022408,97992.0,97991.0,0.01569245]
[1739236573952,0.01022004,97992.0,97991.0,0.01569245]
[1739236574358,0.16329304,97992.0,97991.0,0.01569245]
[1739236575398,0.16329304,97992.0,97991.0,0.00413245]
[1739236575795,0.16329304,97992.0,97991.0,0.00613245]
[1739236576144,0.16329304,97992.0,97991.0,0.00413245]
[1739236576563,0.16329304,97992.0,97991.0,0.00213245]
[1739236576928,0.16329304,97992.0,97991.0,0.00413245]
[1739236577309,0.16329304,97992.0,97991.0,0.00213245]
[1739236577467,0.16329304,97992.0,97991.0,0.00313245]
[1739236578099,0.16329304,97992.0,97991.0,0.00513245]
[1739236581241,0.01022004,97992.0,97991.0,0.00313245]
[1739236581444,0.16329304,97992.0,97991.0,0.00413245]
[1739236581597,0.16329304,97992.0,97991.0,0.00513245]
[1739236587844,0.16329304,97992.0,97991.0,0.00313245]
[1739236588051,0.16329304,97992.0,97991.0,0.00513245]
[1739236588255,0.16329304,97992.0,97991.0,0.00313245]
[1739236588454,0.24419304,97992.0,97991.0,0.00513245]
[1739236588673,0.25436189,97992.0,97991.0,0.00113245]
[1739236588877,0.26036189,97992.0,97991.0,0.00313245]
[1739236589869,0.26036189,97992.0,97991.0,0.00213245]
[1739236590277,0.25436189,97992.0,97991.0,0.00213245]
[1739236590551,0.28636189,97992.0,97991.0,0.00313245]
[1739236590727,0.28736189,97992.0,97991.0,0.00313245]
[1739236591102,0.27836189,97992.0,97991.0,0.00213245]
[1739236591303,0.28436189,97992.0,97991.0,0.00213245]
[1739236591505,0.28336189,97992.0,97991.0,0.00213245]
[1739236591906,0.28536189,97992.0,97991.0,0.00213245]
[1739236593414,0.28336189,97992.0,97991.0,0.00213245]
[1739236593625,0.28436189,97992.0,97991.0,0.00213245]
[1739236594673,0.28436189,97992.0,97991.0,0.00013245]
[1739236595879,0.43436189,97992.0,97991.0,0.00213245]
[1739236596141,0.47956189,97992.0,97991.0,0.00013245]
[1739236596288,0.47956189,97992.0,97991.0,0.00213245]
[1739236596632,0.47956189,97992.0,97991.0,0.00013245]
[1739236597696,0.47956189,97992.0,97991.0,0.00213245]
[1739236598528,0.47956189,97992.0,97991.0,0.00013245]
[1739236600354,0.47956189,97992.0,97991.0,0.00213245]
[1739236605566,0.50363363,97992.0,97991.0,0.00213245]
[1739236605765,0.50363363,97992.0,97991.0,0.00013245]
[1739236606174,0.47956189,97992.0,97991.0,0.00013245]
[1739236606907,0.58206554,97992.0,97991.0,0.00013245]
[1739236607422,0.60790023,97992.0,97991.0,0.00013245]
[1739236607798,0.61590023,97992.0,97991.0,0.00113245]
[1739236608176,0.64133744,97992.0,97991.0,0.00113245]
[1739236609811,0.63233744,97992.0,97991.0,0.00013245]
[1739236609979,0.64633744,97992.0,97991.0,0.00113245]
[1739236610197,0.64133744,97992.0,97991.0,0.00113245]
[1739236610400,0.62733744,97992.0,97991.0,0.00013245]
[1739236610606,0.60690023,97992.0,97991.0,0.00013245]
[1739236610806,0.61390023,97992.0,97991.0,0.00313245]
[1739236611008,0.55906554,97992.0,97991.0,0.00313245]
[1739236611339,0.57406554,97992.0,97991.0,0.00413245]
[1739236611538,0.59006554,97992.0,97991.0,0.00313245]
[1739236611843,0.62890326,97992.0,97991.0,0.00413245]
[1739236611997,0.59706554,97992.0,97991.0,0.00213245]
[1739236612203,0.62890391,97992.0,97991.0,0.00213245]
[1739236613211,0.61390391,97992.0,97991.0,0.00113245]
[1739236613634,0.62790391,97992.0,97991.0,0.00213245]
[1739236615344,0.59606554,97992.0,97991.0,0.00213245]